Cogmind - Beta 11 @@@ ROGUE MODE // 2022.03.24 @ 21:51:25 Player: Shadow Pussy wanter Result: Self-destructed Performance ------------- Evolutions (1) 500 Regions Visited (2) 400 Robots Destroyed (20) 100 Value Destroyed (530) 530 Prototype IDs (2) 40 Alien Tech Used (0) 0 Bonus (0) 0 TOTAL SCORE: 1570 Bonus ------- None Cogmind --------- Core Integrity 275/400 Matter 300/300 Energy 100/100 System Corruption 0% Temperature Hot (243) Movement Rolling (125) Ox3 Location -9/Materials Parts ------- > --- POWER (1) -------- (None) > --- PROPULSION (2) --- Wheel > --- UTILITY (4) ------ Large Storage Unit Improved Utility Shielding > --- WEAPON (2) ------- Ion Cannon Ion Cannon > --- INVENTORY (15) --- Light Nuclear Core Light Treads Light Treads Aluminum Leg Wheel Signal Interpreter Ion Cannon Peak State ------------ > --- POWER ------------ Light Nuclear Core > --- PROPULSION ------- Aluminum Leg Aluminum Leg > --- UTILITY ---------- Small Storage Unit Particle Charger Improved Utility Shielding Tractor Beam > --- WEAPON ----------- Ion Cannon Ion Cannon > --- INVENTORY -------- Light Nuclear Core Light Treads Light Treads Aluminum Leg Wheel Wheel Ion Cannon [Rating: 20] Favorites ----------- Power Ion Engine Engine Ion Engine Power Core Light Nuclear Core Propulsion Aluminum Leg Leg Aluminum Leg Wheel Wheel Utility Tractor Beam Device Tractor Beam Storage Small Storage Unit Protection Improved Utility Shielding Weapon Assault Rifle Energy Cannon Ion Cannon Ballistic Gun Assault Rifle Build | -11 -10 -9 ------- Run | Scr Mat Mat Slots Evolved 2 | . . 2 Power . | . . . Propulsion . | . . . Utility 2 | . . 2 Weapon . | . . . Parts Attached 17 | 7 3 7 Power 2 | 1 1 . Engine 1 | 1 . . Core 1 | . 1 . Reactor . | . . . Propulsion 5 | 2 2 1 Treads . | . . . Leg 4 | 2 2 . Wheel 1 | . . 1 Hover . | . . . Flight . | . . . Utility 5 | 2 . 3 Device 2 | 1 . 1 Storage 2 | 1 . 1 Processor . | . . . Hackware . | . . . Protection 1 | . . 1 Artifact . | . . . Weapon 5 | 2 . 3 Energy Gun . | . . . Energy Cannon 3 | . . 3 Ballistic Gun 2 | 2 . . Ballistic Cannon . | . . . Launcher . | . . . Special Weapon . | . . . Impact Weapon . | . . . Slashing Weapon . | . . . Piercing Weapon . | . . . Special Melee Weapon . | . . . Unidentified Prototypes . | . . . Parts Lost 6 | . . 6 Power 1 | . . 1 Propulsion 2 | . . 2 Utility 2 | . . 2 Weapon 1 | . . 1 Highest Loss Streak 6 | . . 6 To Critical Strikes . | . . . Average Slot Usage (%) 98 | . 100 94 Engine 6 | . 10 . Core 6 | . 3 11 Leg 25 | . 28 19 Device 15 | . 14 19 Storage 12 | . 14 11 Protection 3 | . . 11 Energy Cannon 6 | . . 19 Ballistic Gun 18 | . 28 . Naked Turns . | . . . Heaviest Build 43 | 15 15 43 Greatest Support 20 | 20 20 20 Greatest Overweight (x) 3 | . . 3 Average Overweight (x) . | . . 1 Largest Inventory Capacity 15 | 8 8 15 Average Capacity 9 | 7 8 13 Most Carried 9 | 6 8 9 Average Carried 7 | 3 7 8 Final Capacity 15 | 8 8 15 Final Carried 8 | 6 8 7 Class Distribution -------------------- 55% | Mutant 44% | Scavenger-Mutant Dominant Class ---------------- Mutant | -10/Materials Scavenger-Mutant | -9/Materials Resources | -11 -10 -9 ----------- Run | Scr Mat Mat Matter Collected 675 | 274 338 63 Remotely 492 | 104 338 50 Salvage Created 779 | 65 570 144 Parts 38 | 3 24 11 Haulers Intercepted . | . . . Recyclers Shooed 1 | . 1 . Parts Field Recycled . | . . . Retrieved Matter . | . . . Parts Self-Destructed . | . . . Prevented . | . . . Kills | -11 -10 -9 ------- Run | Scr Mat Mat Combat Hostiles Destroyed 15 | . 12 3 Guns 12 | . 12 . Cannons 3 | . . 3 Classes Destroyed 7 | 1 4 2 Worker 1 | . 1 . Builder 1 | . . 1 Recycler 2 | 1 1 . Operator 1 | . 1 . Swarmer 3 | . 2 1 Grunt 10 | . 10 . Sentry 2 | . . 2 Best Kill Streak 3 | 1 3 2 Combat Bots Only 2 | . 2 1 Max Kills in Single Turn 1 | 1 1 1 Gunslinging . | . . . Exploded . | . . . Melee . | . . . Uniques/NPCs Destroyed . | . . . Combat | -11 -10 -9 -------- Run | Scr Mat Mat Damage Taken 1177 | . 469 708 Core 147 | . 22 125 Absorbed by Shields . | . . . Redirected to Shielding 97 | . . 97 Core Remaining (%) 95 | 100 91 . Volleys Fired 66 | 3 49 14 Largest 2 | 2 2 2 Hottest 120 | 40 40 120 Shots Fired 125 | 6 98 21 Gun 104 | 6 98 . Cannon 21 | . . 21 Launcher . | . . . Special . | . . . Kinetic 104 | 6 98 . Thermal 21 | . . 21 Explosive . | . . . Electromagnetic . | . . . Robot Hit Streak 16 | 3 16 7 Robot Miss Streak 5 | 1 5 1 Penetration Max . | . . . Secondary Targets 1 | . 1 . Max Gunslinging Chain 1 | . 1 . Shots Hit Robots 89 | 4 71 14 Core Hits 33 | 2 28 3 Critical Kills 1 | . . 1 Critical Parts Destroyed . | . . . Critical Strikes 1 | . . 1 Meltdown 1 | . . 1 Melee Attacks . | . . . Impact . | . . . Slashing . | . . . Piercing . | . . . Sneak Attacks . | . . . Combat Hostiles . | . . . Follow-up Attacks . | . . . Damage Inflicted 1305 | 50 867 388 Guns 917 | 50 867 . Cannons 382 | . . 382 Explosions . | . . . Melee . | . . . Ramming 6 | . . 6 Kinetic 917 | 50 867 . Thermal 382 | . . 382 Explosive . | . . . Electromagnetic . | . . . Impact . | . . . Slashing . | . . . Piercing . | . . . Highest Corruption . | . . . Average Corruption . | . . . Corruption Purged . | . . . Corruption Blocked . | . . . Overload Shots . | . . . Overflow Damage 16 | . . 16 Projectiles 16 | . . 16 Explosions . | . . . Melee . | . . . Knockbacks . | . . . Impact . | . . . Kinetic . | . . . Secondary . | . . . Self-Inflicted Damage . | . . . Shots . | . . . Rammed . | . . . Targets Rammed 4 | . . 4 Kicked 4 | . . 4 Crushed . | . . . Highest Temperature 353 | . 2 353 Average Temperature 187 | . 1 209 Received Heat Transfer 501 | . 249 252 Effects 4 | . . 4 Shutdowns 1 | . . 1 Interference 3 | . . 3 Siege Activations . | . . . Robots Corrupted . | . . . Combat Hostiles . | . . . Parts Fried . | . . . Impact Corruptions . | . . . Robots Melted 1 | . . 1 Combat Hostiles . | . . . Parts Melted 2 | . . 2 Heat Transferred 592 | . . 592 Parts Sabotaged . | . . . Parts Stolen . | . . . Parts Stripped . | . . . Power Chain Reactions . | . . . Missiles Intercepted . | . . . Alert | -11 -10 -9 ------- Run | Scr Mat Mat Peak Influence 209 | 5 209 90 Initial 16 | . 3 16 Average 52 | 1 73 29 Maximum Alert Level 1 | . 1 . Low Security (%) 97 | 100 96 100 Level 1 2 | . 3 . Level 2 . | . . . Level 3 . | . . . Level 4 . | . . . Level 5 . | . . . High Security . | . . . Max Security . | . . . Squads Dispatched 2 | . 2 . Investigation . | . . . Extermination . | . . . Reinforcement 2 | . 2 . Assault . | . . . Garrison . | . . . Intercept . | . . . Searches Triggered . | . . . Construction Impeded . | . . . Haulers Reinforced . | . . . Active Scanning Responses . | . . . Cargo Convoy Interrupts . | . . . Stealth | -11 -10 -9 --------- Run | Scr Mat Mat Distress Signals 2 | . 1 1 Communications Jammed . | . . . Distress Signals . | . . . Times Spotted 25 | . 19 6 Peak Tracking Total 7 | . 7 6 Tactical Retreats 1 | . 1 . Traps | -11 -10 -9 ------- Run | Scr Mat Mat Traps Triggered . | . . . Indirectly . | . . . Trap Hack Attempts . | . . . Triggered . | . . . Disarmed . | . . . Reprogrammed . | . . . Reused . | . . . Traps Extracted . | . . . Installed . | . . . Triggered . | . . . Machines | -11 -10 -9 ---------- Run | Scr Mat Mat Machines Disabled 1 | . . 1 Max in Single Turn 1 | . . 1 Machines Sabotaged . | . . . Garrisons Compromised . | . . . Overloaded Fab Kills . | . . . Hacking | -11 -10 -9 --------- Run | Scr Mat Mat Machines Accessed 5 | . 4 1 Terminals 5 | . 4 1 Fabricators . | . . . Repair Stations . | . . . Recycling Units . | . . . Scanalyzers . | . . . Garrison Access . | . . . Total Hacks 21 | . 20 1 Successful 13 | . 13 . Failed 8 | . 7 1 Catastrophic . | . . . Database Lockouts . | . . . Manual 4 | . 3 1 Terminals 21 | . 20 1 Fabricators . | . . . Repair Stations . | . . . Recycling Units . | . . . Scanalyzers . | . . . Garrison Access . | . . . Terminal Hacks 13 | . 13 . Prototype ID Bank 1 | . 1 . Emergency Access Points 1 | . 1 . Recycling Unit Index 1 | . 1 . Alert Level 2 | . 2 . Unreport Threat 2 | . 2 . Locate Traps 1 | . 1 . Dispatch Records 1 | . 1 . Reinforcement Status 2 | . 2 . Hauler Manifests 1 | . 1 . Zone Layout 1 | . 1 . Fabricator Hacks . | . . . Repair Station Hacks . | . . . Recycling Unit Hacks . | . . . Scanalyzer . | . . . Garrison Access Hacks . | . . . Unauthorized Hacks . | . . . Terminals . | . . . Fabricators . | . . . Repair Stations . | . . . Recycling Units . | . . . Scanalyzers . | . . . Garrison Access . | . . . Data Cores Recovered . | . . . Used . | . . . Hacking Detections 5 | . 4 1 Full Trace Events . | . . . Feedback Events . | . . . Feedback Blocked . | . . . Robot Schematics Acquired . | . . . Robots Built . | . . . Authchips . | . . . Time . | . . . Total Robot Build Rating . | . . . Part Schematics Acquired . | . . . Parts Built . | . . . Authchips . | . . . Time . | . . . Total Part Build Rating . | . . . Parts Repaired . | . . . Time . | . . . Parts Recycled . | . . . Recycled Matter . | . . . Retrieved Matter . | . . . Retrieved Components . | . . . Parts Scanalyzed . | . . . Part Schematics Acquired . | . . . Parts Damaged . | . . . Bothacking | -11 -10 -9 ------------ Run | Scr Mat Mat Used RIF Installer . | . . . Robots Hacked . | . . . Non-combat . | . . . Combat . | . . . Robot Hacks Applied . | . . . Relay Couplers Released . | . . . Fabnet Peak Effective % . | . . . Robots Rewired . | . . . Allies Hacked . | . . . Hacks Repelled . | . . . Allies | -11 -10 -9 -------- Run | Scr Mat Mat Total Allies . | . . . Largest Group . | . . . Highest-Rated Group . | . . . Highest-Rated Ally . | . . . Total Orders . | . . . Ally Attacks . | . . . Total Damage . | . . . Kills . | . . . Allies Corrupted . | . . . Allies Melted . | . . . Intel | -11 -10 -9 ------- Run | Scr Mat Mat Robot Analysis Total . | . . . Derelict Logs Recovered . | . . . Drone Launches . | . . . Drone Recoveries . | . . . Exploration | -11 -10 -9 ------------- Run | Scr Mat Mat Turns Passed 876 | 89 512 275 Spaces Moved 404 | 55 263 86 Core 3 | 3 . . Treads . | . . . Legs 397 | 52 263 82 Wheels 4 | . . 4 Hover . | . . . Flight . | . . . Fastest Speed 50 | 50 120 120 Average Speed 142 | 116 120 226 Slowest Speed 330 | 120 120 330 Overloaded Moves . | . . . Propulsion Burnouts . | . . . Robots Hopped . | . . . Cave-ins Triggered . | . . . Exploration Rate (%) 23 | 6 54 10 Regions Visited 2 Branch Regions . Pre-discovered Areas . | . . . Known Exits Taken . | . . . Unknown Exits Taken 2 | 1 1 . Scrap Searched . | . . . Spaces Dug . | . . . Terrain Destroyed 2 | . . 2 Melee . | . . . Projectile 2 | . . 2 AOE . | . . . Terrain Rammed . | . . . Walls Destroyed . | . . . Machines Disabled . | . . . Actions | -11 -10 -9 --------- Run | Scr Mat Mat Total 569 | 70 363 136 Wait 59 | . 42 17 Move 402 | 54 262 86 Hop . | . . . Pick Up 12 | 6 3 3 Fast Attach 12 | 7 1 4 Attach 2 | . . 2 Detach . | . . . Swap 3 | . 2 1 Drop 9 | . 4 5 Fire 66 | 3 49 14 Melee . | . . . Ram . | . . . Kick 4 | . . 4 Crush . | . . . Escape Stasis . | . . . Rewire . | . . . Trap . | . . . Miscellaneous . | . . . Route ------- -11/Scrapyard -10/Materials -9/Materials History --------- Turn | Location | Event 4 | -11/Scrapyard | Discovered new exit (range 15) 90 | -11/Scrapyard | Entered Materials 306 | -10/Materials | Build established: Mutant 544 | -10/Materials | Discovered new exit (range 8) 602 | -10/Materials | Entered another Materials area 602 | -9/Materials | Evolved 2 slots: Utility x2 769 | -9/Materials | Build established: Scavenger-Mutant 877 | -9/Materials | Self-destructed Last Messages --------------- 00836_ Critical hit (Burn: +37). 00838_ R-06 Scavenger collects Lgt. Ion Engine. 00839_ Kicked Y-45 Defender out of the way. 00842_ Particle Charger destroyed. 00844_ Tractor Beam destroyed. 00849_ Y-45 Defender heat short circuits Heat Sink. 00849_ Lgt. Treads melted. 00849_ Y-45 Defender destroyed. 00849_ Processing Tank disabled. 00850_ Overheating: System interference. 00850_ Ion Cannon temporarily disabled. 00852_ Power failure, Lgt. Nuclear Core shutdown. 00853_ Ion Cannon destroyed. 00860_ Acquired 8 matter. 00860_ Aluminum Leg destroyed. 00865_ Acquired 5 matter. 00873_ S-10 Pest destroyed. 00875_ Destroyed Heat Sink. 00875_ Lgt. Nuclear Core destroyed. 00876_ Y-45 Defender heat short circuits Imp. Ion Engine. Map ----- +----------------------------------------------------+ | ????????????????????# #???????????????????? | | ????????????????????# """ #???????????????????? | | ????????????????????#!!! """ #???????????????????? | | ????????????#####???#!!! """ #???????????????????? | | ????????????#! #####! ! #???????????????????? | | ????????????#!![ # """ #???????????????????? | | ????????????# [ # """ #???????????????????? | | ????????????# [ # """ #???????????????????? | | ????????????#![ + #???????????????????? | | ????????????#!! ##########???????????????????? | | ????????????##### #????????????????????????????? | | ??????########### ##???????????????????????????? | | ??????# # #???????????????????????????? | | ??????# """"" # #???????????????????????????? | | ??????# ""T"" + #???????????????????????????? | | ??????# # #???????????????????????????? | | ??????# # #???????????????????????????? | | ??????# """ ### ###??#####????????????????????? | | ??????# """ #?# #?#? ??#?????????????????? | | ??????# """ #?# #?# """ """ #?????????????????? | | ??????# #?# #?# """ """ #?????????????????? | | ??????##########?# #?# """ """ #?????????????????? | | ?????????????????# #?# """ """ #?????????????????? | | ?????????????????# #?# "" *""" #?????????????????? | | ?????????????????# #?# %%! #?????????????????? | | ?????????????????# #?# %@Y*% #?????????????????? | | ?????############# #######s##########????????????? | | ???? %[= ???????? | | ???? % ???????? | | ???? a ???????? | | ????? ############ ##############/#####????????? | | ?????????????????# #???????????????????????????? | | ?????????????????# #???????????????????????????? | | ???????????????? #???????????????????????????? | | ???????????????] "???????????????????????????? | | ??????????????[[ T"??????????????????????????? | | ?????????????#[[ ""#?????????????????????????? | | ?????????????#!! ###?????????????????????????? | | ?????????????#!! #???????????????????????????? | | ?????????????##### #???????????????????????????? | | ?????????????????# #???????????????????????????? | | ?????????????????# #???????????????????????????? | | ?????????????????# #???????????????????????????? | | ?????????????????# #???????????????????????????? | | ????????????????? ????????????????????????????? | | ?????????????????? ????????????????????????????? | | ??????????????????! ????????????????????????????? | | ?????????????????????????????????????????????????? | | ?????????????????????????????????????????????????? | | ?????????????????????????????????????????????????? | +----------------------------------------------------+ Best States ------------- Heat Dissipation 28 Energy Generation 14 Energy Capacity 250 Matter Stores 300 Matter Capacity 300 Sight Range 16 Terrain Scan Density 10 Utility Shielding 66 Evasion (%) 55 Particle Charging 15 Item Schematics ----------------- None Robot Schematics ------------------ None Fabricated ------------ Nothing Alien Tech Used ----------------- None Achievements -------------- None Challenges ------------ None Game ------ Seed FactoryTractorShotgun Manual? 0 Play Time 00:09:53 Cumulative 41.7 hours Start 2022.03.24 @ 21:43:46 End 2022.03.24 @ 21:51:25 Sessions 1 Manual Loads 0 Difficulty Rogue Special Mode None Game No. 74 Rogue 74 Adventurer 0 Explorer 0 Win Type - Total 0 Types 0/0/0/0/0/0/0/0/0 Lore% 35 Gallery% 42 Achievement% 30 Wizard Run 0 Options --------- ASCII 0 Keyboard 0 Movement Numpad Keybinds 0 Fullscreen 1 Font 18/SmallcapsGlow Map View 76x50 Tactical HUD 1 Map Filters NONE Filters NONE Steam 1 RUN: e94bbaee-5015-40c2-bfec-85b07a02d4f7